bitfinex/quotes_BTCUSD_20240718
["timestamp","ask_amount","ask_price","bid_price","bid_amount"]
[1721327429028,1.31212996,63652.0,63651.0,0.000913]
[1721327429479,1.28754284,63652.0,63651.0,0.000913]
[1721327429725,1.29354284,63652.0,63651.0,0.001913]
[1721327429939,0.97933484,63652.0,63651.0,0.001913]
[1721327430162,0.66512684,63652.0,63651.0,0.001913]
[1721327430383,0.94425,63652.0,63651.0,0.002913]
[1721327431331,0.93525,63652.0,63651.0,0.001913]
[1721327431555,0.93525,63652.0,63651.0,0.000913]
[1721327431556,0.92925,63652.0,63651.0,0.000913]
[1721327431778,0.93125,63652.0,63651.0,0.000913]
[1721327433072,0.93225,63652.0,63651.0,0.000913]
[1721327433288,0.618042,63652.0,63651.0,0.000913]
[1721327433509,0.93225,63652.0,63651.0,0.000913]
[1721327434879,0.618042,63652.0,63651.0,0.000913]
[1721327435125,0.93225,63652.0,63651.0,0.000913]
[1721327436725,1.056978,63652.0,63651.0,0.000913]
[1721327436935,1.10098861,63652.0,63651.0,0.000913]
[1721327437177,1.41519661,63652.0,63651.0,0.000913]
[1721327437411,1.4397866,63652.0,63651.0,0.000913]
[1721327437649,1.59407775,63652.0,63651.0,0.000913]
[1721327437872,1.90828575,63652.0,63651.0,0.000913]
[1721327438744,1.90628575,63652.0,63651.0,0.000913]
[1721327438955,1.98850881,63652.0,63651.0,0.001913]
[1721327439378,1.91828575,63652.0,63651.0,0.001913]
[1721327439809,1.91728575,63652.0,63651.0,0.001913]
[1721327440205,1.91728575,63652.0,63651.0,0.002913]
[1721327440206,1.92428575,63652.0,63651.0,0.002913]
[1721327440657,1.88036573,63652.0,63651.0,0.002913]
[1721327440873,1.9239579,63652.0,63651.0,0.002913]
[1721327441308,1.7992299,63652.0,63651.0,0.002913]
[1721327441988,1.4850219,63652.0,63651.0,0.002913]
[1721327442746,1.33064016,63652.0,63651.0,0.002913]
[1721327442986,1.30605017,63652.0,63651.0,0.002913]
[1721327443225,1.262458,63652.0,63651.0,0.002913]
[1721327443665,1.250458,63652.0,63651.0,0.001913]
[1721327443884,1.264458,63652.0,63651.0,0.001913]
[1721327444130,1.30184213,63652.0,63651.0,0.001913]
[1721327444382,1.92182645,63652.0,63651.0,0.001913]
[1721327444603,1.90782645,63652.0,63651.0,0.000913]
[1721327444821,1.59861845,63652.0,63651.0,0.000913]
[1721327444965,1.59461845,63652.0,63651.0,0.000913]
[1721327446012,1.90882645,63652.0,63651.0,0.000913]
[1721327446231,1.59461845,63652.0,63651.0,0.000913]
[1721327446694,1.90882645,63652.0,63651.0,0.000913]
[1721327447146,1.86444525,63652.0,63651.0,0.000913]
[1721327447384,1.91511823,63652.0,63651.0,0.000913]
[1721327447605,1.90911823,63652.0,63651.0,0.000913]
[1721327448072,1.96311823,63652.0,63651.0,0.000913]
[1721327448290,2.01311823,63652.0,63651.0,0.000913]
[1721327448513,2.06311823,63652.0,63651.0,0.000913]
[1721327449222,2.01311823,63652.0,63651.0,0.000913]
[1721327450416,1.96844525,63652.0,63651.0,0.000913]
[1721327450594,2.01377611,63652.0,63651.0,0.000913]
[1721327452426,2.09522882,63652.0,63651.0,0.000913]
[1721327453526,2.09524202,63652.0,63651.0,0.000913]
[1721327453775,2.09521647,63652.0,63651.0,0.000913]
[1721327454014,2.09521623,63652.0,63651.0,0.000913]
[1721327454904,1.50381862,63652.0,63651.0,0.000913]
[1721327455122,1.42251785,63652.0,63651.0,0.000913]
[1721327456711,1.42288014,63652.0,63651.0,0.000913]
[1721327458329,1.50446775,63652.0,63651.0,0.000913]
[1721327458576,1.65884949,63652.0,63651.0,0.000913]
[1721327459055,2.12740706,63652.0,63651.0,0.000913]
[1721327459311,1.57726188,63652.0,63651.0,0.000913]
[1721327459541,1.42288014,63652.0,63651.0,0.000913]
[1721327459972,1.42370296,63652.0,63651.0,0.000913]
[1721327460904,0.55238696,63652.0,63651.0,0.000913]
[1721327461139,0.86659496,63652.0,63651.0,0.000913]
[1721327461379,0.96774746,63652.0,63651.0,0.000913]
[1721327461607,1.4792847,63652.0,63651.0,0.000913]
[1721327461826,1.4702847,63652.0,63651.0,0.000913]
[1721327462044,1.4712847,63652.0,63651.0,0.000913]
[1721327462283,1.74083738,63652.0,63651.0,0.000913]
[1721327462494,2.17254675,63652.0,63651.0,0.000913]
[1721327462745,2.04618695,63652.0,63651.0,0.000913]
[1721327462992,2.48763561,63652.0,63651.0,0.000913]
[1721327463206,2.41111362,63652.0,63651.0,0.000913]
[1721327463423,2.17841412,63652.0,63651.0,0.000913]
[1721327463652,2.17441412,63652.0,63651.0,0.000913]
[1721327463877,2.16941412,63652.0,63651.0,0.000913]
[1721327464319,2.33501412,63652.0,63651.0,0.000913]
[1721327464540,2.78982597,63652.0,63651.0,0.000913]
[1721327464789,2.64922212,63652.0,63651.0,0.000913]
[1721327464996,2.65522212,63652.0,63651.0,0.001913]
[1721327465213,1.97106455,63652.0,63651.0,0.001913]
[1721327465495,2.48374712,63652.0,63651.0,0.001913]
[1721327465708,2.17558032,63652.0,63651.0,0.002913]
[1721327465988,1.98493682,63652.0,63651.0,0.002913]
[1721327467971,1.51634708,63652.0,63651.0,0.002913]
[1721327468241,1.29031574,63652.0,63651.0,0.002913]
[1721327468455,0.65579631,63652.0,63651.0,0.002913]
[1721327468699,0.56182894,63652.0,63651.0,0.002913]
[1721327468919,0.56182894,63652.0,63651.0,0.000913]
[1721327468920,0.54282894,63652.0,63651.0,0.000913]
[1721327469140,0.86303694,63652.0,63651.0,0.001913]
[1721327469359,0.87603694,63652.0,63651.0,0.002913]
[1721327469584,0.87603694,63652.0,63651.0,0.001913]
[1721327469831,0.93347094,63652.0,63651.0,0.000913]
[1721327470047,0.86603694,63652.0,63651.0,0.000913]
[1721327471598,0.81993964,63652.0,63651.0,0.000913]
[1721327471775,0.86584876,63652.0,63651.0,0.000913]
[1721327472030,1.13414764,63652.0,63651.0,0.000913]
[1721327472250,0.86584877,63652.0,63651.0,0.000913]
[1721327472473,0.86584846,63652.0,63651.0,0.000913]
[1721327474904,0.08018892,63652.0,63651.0,0.148113]
[1721327475103,0.481142,63652.0,63651.0,0.000913]
[1721327475320,0.79535,63652.0,63651.0,0.000913]
[1721327475741,0.481142,63652.0,63651.0,0.000913]
[1721327475947,0.479142,63652.0,63651.0,0.000913]
[1721327476167,0.472142,63652.0,63651.0,0.000913]
[1721327476380,0.78835,63652.0,63651.0,0.000913]
[1721327476594,0.78835,63652.0,63651.0,0.003913]
[1721327476595,1.38822062,63652.0,63651.0,0.003913]
[1721327476806,1.68203924,63652.0,63651.0,0.003913]
[1721327477025,2.07638669,63652.0,63651.0,0.003913]
[1721327477239,2.12638669,63652.0,63651.0,0.003913]
[1721327477909,2.12638669,63652.0,63643.0,0.000913]
[1721327477910,1.556516,63644.0,63643.0,0.000913]
[1721327478149,2.11644633,63644.0,63643.0,0.000913]
[1721327478382,2.48727524,63644.0,63643.0,0.000913]
[1721327478602,2.4872503,63644.0,63643.0,0.000913]
[1721327478860,1.100022,63635.0,63634.0,0.03038843]
[1721327479076,1.55851962,63635.0,63634.0,0.03038843]
[1721327479300,1.46473306,63635.0,63634.0,0.03038843]
[1721327479482,1.53503294,63635.0,63634.0,0.03038843]
[1721327479737,1.5350113,63635.0,63634.0,0.03038843]
[1721327480726,0.157176,63623.0,63621.0,0.063]
[1721327480935,0.157176,63623.0,63621.0,0.09338843]
[1721327481378,0.314345,63625.0,63621.0,0.09338843]
[1721327481379,0.314347,63624.0,63621.0,0.09338843]
[1721327481595,0.157177,63623.0,63621.0,0.09338843]
[1721327482266,0.157178,63622.0,63621.0,0.09338843]
[1721327482497,0.864477,63622.0,63621.0,0.04938843]
[1721327482723,0.78589,63622.0,63621.0,0.04938843]
[1721327483167,0.78589,63622.0,63621.0,0.03938843]
[1721327483396,0.78589,63622.0,63621.0,0.03038843]
[1721327484743,0.78689,63622.0,63621.0,0.04238843]
[1721327484962,0.78789,63622.0,63621.0,0.05238843]
[1721327486307,1.47821674,63622.0,63621.0,0.05238843]
[1721327486560,1.52264602,63622.0,63621.0,0.05238843]
[1721327486780,1.86160363,63622.0,63621.0,0.05238843]
[1721327487679,1.86149629,63622.0,63621.0,0.022]
[1721327487926,1.86149629,63622.0,63617.0,0.009174]
[1721327487927,1.100316,63618.0,63617.0,0.009174]
[1721327488144,1.100316,63618.0,63617.0,0.03956243]
[1721327488442,0.78594,63618.0,63617.0,0.03956243]
[1721327490055,0.79294,63618.0,63617.0,0.04056243]
[1721327490312,0.9036696,63618.0,63617.0,0.04056243]
[1721327490760,1.2180456,63618.0,63617.0,0.04056243]
[1721327490993,1.3597456,63618.0,63617.0,0.04056243]
[1721327491267,1.3597456,63618.0,63617.0,0.04156243]
[1721327491268,1.98450334,63618.0,63617.0,0.04156243]
[1721327491481,0.218825,63603.0,63602.0,0.009174]
[1721327491747,1.30954504,63603.0,63602.0,0.009174]
[1721327491952,1.93844504,63603.0,63602.0,0.009174]
[1721327492395,1.75614504,63603.0,63602.0,0.009174]
[1721327492629,1.71100674,63603.0,63602.0,0.009174]
[1721327492904,1.71100674,63603.0,63602.0,0.010174]
[1721327492905,1.251175,63603.0,63602.0,0.010174]
[1721327493131,0.795125,63603.0,63602.0,0.009174]
[1721327493839,0.809125,63603.0,63602.0,0.010174]
[1721327494100,0.9266911,63603.0,63602.0,0.010174]
[1721327494543,0.809125,63603.0,63602.0,0.010174]
[1721327495211,0.805125,63603.0,63602.0,0.010174]
[1721327495453,0.796125,63603.0,63602.0,0.009174]
[1721327495915,0.800125,63603.0,63602.0,0.009174]
[1721327496179,0.004,63603.0,63602.0,0.009174]
[1721327496392,0.007,63603.0,63602.0,0.009174]
[1721327496614,0.01,63603.0,63602.0,0.009174]
[1721327497121,0.478675,63603.0,63602.0,0.009174]
[1721327497368,0.793125,63603.0,63602.0,0.009174]
[1721327497576,1.107575,63603.0,63602.0,0.009174]
[1721327498463,1.249975,63603.0,63602.0,0.009174]
[1721327498911,1.252975,63603.0,63602.0,0.009174]
[1721327499131,1.3782725,63603.0,63602.0,0.009174]
[1721327500205,1.252975,63603.0,63602.0,0.009174]
[1721327502544,1.252975,63603.0,63602.0,0.00875378]
[1721327502773,1.110575,63603.0,63602.0,0.00875378]
[1721327503001,0.796125,63603.0,63602.0,0.00875378]
[1721327503739,0.01,63603.0,63602.0,0.00875378]
[1721327503952,0.01,63603.0,63602.0,0.08395378]
[1721327504172,0.167225,63603.0,63602.0,0.08383351]
[1721327504623,0.167225,63603.0,63602.0,0.00863351]
[1721327504966,0.862425,63603.0,63602.0,0.00863351]
[1721327505184,0.941525,63603.0,63602.0,0.00863351]
[1721327505666,1.3815714,63603.0,63602.0,0.00863351]
[1721327506553,1.255975,63603.0,63602.0,0.00863351]
[1721327507504,0.941525,63603.0,63602.0,0.00863351]
[1721327507749,0.481675,63603.0,63602.0,0.00863351]
[1721327509186,0.01,63603.0,63602.0,0.00863351]
[1721327509414,0.167225,63603.0,63602.0,0.00863351]
[1721327509642,0.01,63603.0,63602.0,0.50331551]
[1721327509865,0.01,63603.0,63602.0,0.00863351]
[1721327510085,0.01,63603.0,63602.0,0.16586051]
[1721327510309,0.01,63603.0,63602.0,0.48031551]
[1721327510559,0.01,63603.0,63602.0,0.16586051]
[1721327510783,0.01,63603.0,63602.0,0.00863351]
[1721327510784,0.003,63603.0,63602.0,0.00863351]
[1721327511232,0.004,63603.0,63602.0,0.01563351]
[1721327511762,0.001,63603.0,63602.0,0.01563351]
[1721327512220,0.001,63603.0,63602.0,0.49031551]
[1721327512870,0.001,63603.0,63602.0,0.17286051]
[1721327513083,0.002,63603.0,63602.0,0.33508851]
[1721327513307,0.002,63603.0,63602.0,0.49231551]
[1721327514468,0.002,63603.0,63602.0,0.02063351]
[1721327514922,0.002,63603.0,63602.0,0.17786051]
[1721327517391,0.00194291,63603.0,63602.0,0.17786051]
[1721327518782,0.00194291,63603.0,63602.0,0.49231551]
[1721327519006,0.00194291,63603.0,63602.0,0.82977051]
[1721327521302,0.00194291,63603.0,63602.0,0.51531551]
[1721327521746,0.00194291,63603.0,63602.0,0.82977051]
[1721327524446,0.00194291,63603.0,63602.0,0.51531551]
[1721327525310,0.00194291,63603.0,63602.0,0.82977051]
[1721327527365,0.15916791,63603.0,63602.0,0.02063351]
[1721327527586,0.92726791,63603.0,63602.0,0.02063351]
[1721327527803,1.24171791,63603.0,63602.0,0.02063351]
[1721327528027,1.31360986,63603.0,63602.0,0.02063351]
[1721327528266,1.44497085,63603.0,63602.0,0.02063351]
[1721327528485,1.44384549,63603.0,63602.0,0.01363351]
[1721327529168,1.44284549,63603.0,63602.0,0.00863351]
[1721327530744,1.3114845,63603.0,63602.0,0.00863351]
[1721327531230,1.31170318,63603.0,63602.0,0.00863351]
[1721327532800,0.07192818,63603.0,63602.0,0.00863351]
[1721327533017,0.157225,63603.0,63602.0,0.00863351]
[1721327533954,0.472675,63603.0,63602.0,0.01263351]
[1721327534677,0.60422116,63603.0,63602.0,0.01263351]
[1721327535168,0.60322116,63603.0,63602.0,0.00863351]
[1721327535383,0.62782706,63603.0,63602.0,0.00863351]
[1721327535594,0.62782706,63603.0,63602.0,0.01063351]
[1721327535849,1.25672706,63603.0,63602.0,0.01063351]
[1721327536112,1.40092706,63603.0,63602.0,0.01463351]
[1721327536325,1.40092706,63603.0,63602.0,0.01163351]
[1721327536542,1.40092706,63603.0,63602.0,0.01463351]
[1721327537258,1.31621546,63603.0,63602.0,0.01463351]
[1721327537492,1.2693809,63603.0,63602.0,0.00863351]
[1721327537707,0.22794635,63603.0,63602.0,0.00863351]
[1721327538155,0.07071851,63603.0,63602.0,0.00863351]
[1721327538414,0.2283963,63611.0,63602.0,0.03163351]
[1721327538671,0.20335099,63610.0,63605.0,0.157219]
[1721327538891,0.04614299,63609.0,63605.0,0.157219]
[1721327540252,0.001,63609.0,63605.0,0.164219]
[1721327541805,0.15821,63609.0,63605.0,0.007]
[1721327542039,0.157217,63606.0,63605.0,0.007]
[1721327542281,0.158211,63609.0,63605.0,0.007]
[1721327542504,0.157215,63607.0,63605.0,0.013]
[1721327542726,0.157213,63608.0,63605.0,0.013]
[1721327542942,0.002,63609.0,63605.0,0.17022]
[1721327543153,0.158038,63610.0,63606.0,0.157217]
[1721327543388,0.07030426,63609.0,63606.0,0.157217]
[1721327543625,0.02460352,63609.0,63606.0,0.157217]
[1721327543899,0.158038,63610.0,63605.0,0.16422]
[1721327544117,0.07030353,63609.0,63605.0,0.15722]
[1721327544341,0.158038,63610.0,63605.0,0.15722]
[1721327544564,0.001,63608.0,63606.0,0.157217]
[1721327544999,0.001,63608.0,63605.0,0.157219]
[1721327545449,0.001,63608.0,63603.0,0.023]
[1721327545663,0.001,63608.0,63603.0,0.180224]
[1721327545880,0.001,63608.0,63605.0,0.006]
[1721327546360,0.001,63608.0,63604.0,0.157221]
[1721327546617,0.159214,63608.0,63605.0,0.007]
[1721327547213,0.158214,63608.0,63604.0,0.157222]
[1721327547415,0.001,63608.0,63606.0,0.007]
[1721327547613,0.002,63608.0,63606.0,0.007]
[1721327547811,0.001,63608.0,63604.0,0.164222]
[1721327548058,0.002,63608.0,63605.0,0.008]
[1721327548462,0.002,63608.0,63605.0,0.15722]
[1721327548463,0.001,63608.0,63605.0,0.15722]
[1721327548965,0.001,63608.0,63607.0,0.613545]
[1721327549189,0.00083,63610.0,63609.0,0.66353]
[1721327549415,0.00083,63610.0,63609.0,1.13233174]
[1721327549648,0.00083,63610.0,63609.0,1.60124174]
[1721327551004,0.00183,63610.0,63609.0,1.60824174]
[1721327551441,0.00183,63610.0,63609.0,1.62224174]
[1721327552089,0.00183,63610.0,63609.0,1.60824174]
[1721327552308,0.00083,63610.0,63609.0,1.60124174]
[1721327552530,0.00183,63610.0,63609.0,1.62924174]
[1721327552971,0.00183,63610.0,63609.0,1.61524174]
[1721327553186,0.00083,63610.0,63609.0,1.61524174]
[1721327553404,0.00083,63610.0,63609.0,1.56524174]
[1721327553624,0.00183,63610.0,63609.0,1.57924174]
[1721327553879,0.00183,63610.0,63609.0,1.56524174]
[1721327554120,0.00183,63610.0,63609.0,1.57924174]
[1721327554351,0.00183,63610.0,63609.0,1.62924174]
[1721327554575,0.00183,63610.0,63609.0,2.37464125]
[1721327554805,0.00083,63610.0,63609.0,2.06022125]
[1721327555014,0.00083,63610.0,63609.0,2.47940889]
[1721327555502,0.00083,63611.0,63610.0,1.381942]
[1721327555503,1e-06,63611.0,63610.0,1.381942]
[1721327555745,0.46304871,63639.0,63638.0,0.157138]
[1721327555961,0.0814,63644.0,63643.0,0.157126]
[1721327556655,0.0814,63644.0,63640.0,0.314267]
[1721327556854,0.0663,63647.0,63642.0,0.157128]
[1721327557814,0.0663,63647.0,63644.0,0.157123]
[1721327558062,0.002794,63646.0,63642.0,0.471384]
[1721327558280,0.0657,63650.0,63643.0,0.15752399]
[1721327558496,0.002794,63651.0,63650.0,0.157109]
[1721327558711,0.002794,63651.0,63647.0,0.314229]
[1721327558712,0.00083,63652.0,63651.0,0.157106]
[1721327558924,0.00083,63652.0,63651.0,0.785532]
[1721327559175,0.00083,63652.0,63651.0,0.494319]
[1721327559397,0.00083,63652.0,63651.0,0.96291374]
[1721327560950,0.00083,63652.0,63651.0,0.96891374]
[1721327561617,0.00083,63652.0,63651.0,1.36461674]
[1721327561865,0.00083,63652.0,63651.0,1.60671674]
[1721327562089,0.00083,63652.0,63651.0,1.61171674]
[1721327562307,0.00083,63652.0,63651.0,1.60571674]
[1721327562527,0.00083,63652.0,63651.0,1.61971674]
[1721327563444,0.00083,63652.0,63651.0,1.92892974]
[1721327563687,0.001,63652.0,63651.0,1.94292974]
[1721327563919,0.001,63652.0,63651.0,1.92892974]
[1721327564146,0.001,63652.0,63651.0,1.94292974]
[1721327564373,0.00083,63653.0,63652.0,1.181218]
[1721327564593,0.00083,63653.0,63652.0,1.45859974]
[1721327565007,0.00083,63653.0,63652.0,1.77280774]
[1721327565911,0.00083,63653.0,63652.0,1.78680774]
[1721327566596,0.00083,63653.0,63652.0,1.47259974]
[1721327566819,0.00083,63653.0,63652.0,1.42259974]
[1721327567740,0.00083,63653.0,63652.0,1.39110974]
[1721327568197,0.00183,63653.0,63652.0,1.40510974]
[1721327569103,0.00183,63653.0,63652.0,1.48659974]
[1721327569330,0.00183,63653.0,63652.0,1.43659974]
[1721327569786,0.00183,63653.0,63652.0,1.48659974]
[1721327570222,0.00183,63653.0,63652.0,1.54951674]
[1721327570683,0.00183,63653.0,63652.0,1.48659974]
[1721327571137,0.00183,63653.0,63652.0,1.53623774]
[1721327572266,0.00183,63653.0,63652.0,1.48623774]
[1721327572964,0.00183,63653.0,63652.0,1.53623774]
[1721327573177,0.00183,63653.0,63652.0,1.85044574]
[1721327573602,0.04963833,63665.0,63664.0,0.785372]
[1721327573808,0.04963833,63665.0,63664.0,0.96275374]
[1721327574025,0.0816,63666.0,63664.0,0.96275374]
[1721327574026,0.0816,63666.0,63665.0,0.471216]
[1721327574283,0.00834,63667.0,63666.0,0.471208]
[1721327574673,0.00834,63667.0,63666.0,0.494208]
[1721327574892,0.00834,63667.0,63666.0,1.27686774]
[1721327575695,0.00834,63672.0,63670.0,1.099416]
[1721327575954,0.00834,63672.0,63670.0,1.27679774]
[1721327577343,0.00834,63672.0,63670.0,0.96267874]
[1721327577612,0.15024,63671.0,63670.0,0.023]
[1721327577833,0.15024,63671.0,63670.0,0.014]
[1721327578091,0.464354,63671.0,63670.0,0.014]
[1721327578290,0.15024,63671.0,63670.0,0.028]
[1721327578506,0.307297,63671.0,63670.0,0.014]
[1721327579148,0.15024,63671.0,63668.0,0.157064]
[1721327579591,0.15024,63671.0,63670.0,0.014]
[1721327580281,0.15024,63671.0,63670.0,0.171059]
[1721327580501,0.15024,63671.0,63670.0,0.183059]
[1721327581008,0.00834,63672.0,63671.0,0.157057]
[1721327581226,0.00834,63672.0,63670.0,0.157059]
[1721327581456,0.314114,63671.0,63670.0,0.012]
[1721327581707,0.785285,63671.0,63670.0,0.012]
[1721327581940,0.314114,63671.0,63658.0,0.314176]
[1721327582166,0.157074,63664.0,63660.0,0.157083]
[1721327583079,0.157073,63665.0,63659.0,0.31417]
[1721327583349,0.00834,63672.0,63660.0,0.15438174]
[1721327583593,0.00834,63672.0,63661.0,0.023]
[1721327583813,0.00834,63672.0,63671.0,0.471171]
[1721327584039,0.00834,63674.0,63672.0,0.471163]
[1721327584264,0.00834,63674.0,63673.0,0.471156]
[1721327584485,0.00834,63674.0,63673.0,0.62553774]
[1721327584716,0.00834,63674.0,63673.0,1.27674574]
[1721327586749,0.00834,63674.0,63673.0,1.40718973]
[1721327586980,0.00834,63674.0,63673.0,1.42118973]
[1721327587450,0.14783,63683.0,63674.0,1.099346]
[1721327587674,0.14783,63683.0,63674.0,1.40717004]
[1721327588595,0.00083,63683.0,63674.0,1.40717004]
[1721327589048,0.00083,63683.0,63674.0,1.45717004]
[1721327589260,0.00083,63683.0,63674.0,1.40647004]
[1721327589746,0.00083,63683.0,63674.0,1.87056904]
[1721327589981,0.00083,63683.0,63674.0,2.04825904]
[1721327590211,0.00083,63683.0,63674.0,2.06155904]
[1721327590446,0.00083,63683.0,63674.0,2.07555904]
[1721327590707,0.00083,63683.0,63674.0,1.94511674]
[1721327590945,0.00083,63683.0,63682.0,1.29521]
[1721327591220,0.00083,63683.0,63682.0,1.91651197]
[1721327591445,0.00083,63683.0,63682.0,2.23057197]
[1721327591667,0.00083,63683.0,63682.0,1.83502197]
[1721327592112,0.00083,63683.0,63682.0,1.65252197]
[1721327592675,0.00083,63683.0,63682.0,1.52032197]
[1721327592755,0.00083,63683.0,63682.0,1.50632197]
[1721327592978,0.00083,63683.0,63682.0,1.20626197]
[1721327593418,0.00083,63683.0,63682.0,1.10626197]
[1721327593645,0.00083,63683.0,63682.0,0.14443023]
[1721327593867,0.00083,63683.0,63682.0,0.014]
[1721327594085,0.00083,63683.0,63682.0,0.96753174]
[1721327594324,0.00083,63683.0,63682.0,0.95353174]
[1721327594554,0.00083,63683.0,63682.0,0.96753174]
[1721327595004,0.00083,63683.0,63682.0,0.67647174]
[1721327595499,0.00083,63683.0,63682.0,0.66247174]
[1721327595717,0.00083,63683.0,63682.0,0.67647174]
[1721327596032,0.217915,63688.0,63684.0,0.157024]
[1721327596271,0.217915,63688.0,63685.0,0.023]
[1721327596536,0.0609,63688.0,63685.0,0.180022]
[1721327597208,0.0609,63688.0,63685.0,0.023]
[1721327597209,0.217915,63688.0,63685.0,0.023]
[1721327598335,0.217915,63688.0,63685.0,0.034]
[1721327598793,0.217915,63688.0,63685.0,0.047]
[1721327599027,0.0609,63688.0,63686.0,0.157019]
[1721327599459,0.0609,63688.0,63687.0,0.33439874]
[1721327599646,0.0609,63688.0,63687.0,0.64843374]
[1721327600395,0.0629,63692.0,63688.0,0.31403]
[1721327600620,0.0629,63692.0,63690.0,0.15701]
[1721327600833,0.0629,63692.0,63691.0,0.023]
[1721327601283,0.0629,63692.0,63690.0,0.023]
[1721327601511,0.219905,63692.0,63690.0,0.023]
[1721327602421,0.219905,63692.0,63690.0,0.031]
[1721327602881,0.471024,63691.0,63690.0,0.008]
[1721327603107,0.78504,63691.0,63690.0,0.008]
[1721327603296,0.78504,63691.0,63690.0,0.015]
[1721327603997,0.78504,63691.0,63690.0,0.008]
[1721327604252,0.78504,63691.0,63690.0,0.016]
[1721327604541,1.175156,63691.0,63690.0,0.016]
[1721327604780,1.83165704,63691.0,63690.0,0.016]
[1721327605015,2.52210347,63691.0,63690.0,0.016]
[1721327605233,0.785272,63672.0,63671.0,0.46304871]
[1721327605480,0.925172,63672.0,63671.0,0.46304871]
[1721327605722,0.925172,63672.0,63661.0,0.04688951]
[1721327605723,0.454009,63672.0,63661.0,0.04688951]
[1721327605953,0.471216,63665.0,63664.0,0.15438174]
[1721327606432,0.157068,63667.0,63664.0,0.15438174]
[1721327606647,0.1399,63672.0,63664.0,0.15438174]
[1721327606875,0.157072,63665.0,63664.0,0.15438174]
[1721327607321,0.314125,63669.0,63656.0,0.36112504]
[1721327607558,0.157078,63663.0,63658.0,0.157088]
[1721327607781,0.157078,63663.0,63659.0,0.15438174]
[1721327608004,0.157074,63664.0,63659.0,0.31146774]
[1721327608875,0.157074,63664.0,63660.0,0.180084]
[1721327609119,0.001,63663.0,63662.0,0.471238]
[1721327609332,0.001,63663.0,63662.0,1.02307874]
[1721327609547,0.001,63664.0,63663.0,0.471231]
[1721327609762,0.001,63664.0,63663.0,0.93976674]
[1721327609976,0.001,63664.0,63663.0,0.96276674]
[1721327610195,0.04936433,63671.0,63668.0,0.157063]
[1721327610437,0.04936433,63671.0,63669.0,0.17738174]
[1721327610709,0.06,63677.0,63670.0,0.314119]
[1721327610920,0.157038,63679.0,63674.0,0.157048]
[1721327611149,0.157038,63679.0,63673.0,0.157051]
[1721327611150,0.314078,63679.0,63673.0,0.157051]
[1721327611365,0.157045,63676.0,63675.0,0.023]
[1721327611586,0.157045,63676.0,63673.0,0.15438174]
[1721327611587,0.157047,63675.0,63674.0,0.023]
[1721327611771,0.314075,63679.0,63674.0,0.023]
[1721327611772,0.157042,63678.0,63674.0,0.023]
[1721327612079,0.314075,63679.0,63674.0,0.023]
[1721327612325,0.157037,63679.0,63674.0,0.180049]
[1721327612755,0.157037,63679.0,63675.0,0.008]
[1721327612998,0.157037,63679.0,63676.0,0.023]
[1721327613237,0.374066,63681.0,63676.0,0.023]
[1721327613238,0.157042,63677.0,63676.0,0.023]
[1721327614161,0.217032,63681.0,63676.0,0.33442374]
[1721327614628,0.157035,63680.0,63676.0,0.33442374]
[1721327614854,0.157035,63680.0,63676.0,0.17738174]
[1721327615104,0.157045,63676.0,63675.0,0.001]
[1721327615344,0.157045,63676.0,63661.0,0.0753]
[1721327615345,0.157068,63667.0,63661.0,0.314161]
[1721327615560,0.157068,63667.0,63663.0,0.157076]
[1721327615561,0.220968,63667.0,63663.0,0.157076]
[1721327615842,0.0639,63667.0,63664.0,0.15438174]
[1721327616061,0.0639,63667.0,63664.0,0.31145574]
[1721327616716,0.0639,63667.0,63665.0,0.023]
[1721327617380,0.0822,63669.0,63665.0,0.023]
[1721327617612,0.15705,63674.0,63669.0,0.157061]
[1721327617833,0.157055,63672.0,63670.0,0.023]
[1721327618742,0.157052,63673.0,63670.0,0.023]
[1721327618978,0.157055,63672.0,63670.0,0.023]
[1721327619206,0.3141,63674.0,63670.0,0.04]
[1721327619207,0.157053,63673.0,63670.0,0.04]
[1721327619436,0.157053,63673.0,63670.0,0.031]
[1721327619914,0.157053,63673.0,63670.0,0.037]
[1721327620147,0.157048,63675.0,63670.0,0.031]
[1721327620359,0.157051,63674.0,63670.0,0.023]
[1721327620578,0.0772,63678.0,63672.0,0.314109]
[1721327620818,0.157043,63677.0,63673.0,0.023]
[1721327621476,0.157046,63676.0,63673.0,0.023]
[1721327621911,0.157042,63677.0,63673.0,0.023]
[1721327622536,0.157045,63676.0,63673.0,0.023]
[1721327623004,0.157042,63677.0,63673.0,0.023]
[1721327623615,0.23424,63678.0,63673.0,0.032]
[1721327623831,0.220636,63680.0,63675.0,0.157045]
[1721327624044,0.157038,63679.0,63676.0,0.023]
[1721327625243,0.157035,63680.0,63676.0,0.180043]
[1721327625678,0.157037,63679.0,63676.0,0.023]
[1721327625806,0.157034,63681.0,63677.0,0.157042]
[1721327626432,0.157034,63681.0,63676.0,0.185044]
[1721327626663,0.157035,63680.0,63676.0,0.180044]
[1721327626878,0.157035,63680.0,63677.0,0.001]
[1721327627365,0.157033,63681.0,63677.0,0.001]
[1721327629115,0.220328,63683.0,63679.0,0.157037]
[1721327629561,0.220328,63683.0,63678.0,0.157039]
[1721327629789,0.220328,63683.0,63679.0,0.023]
[1721327630642,0.157028,63683.0,63679.0,0.023]
[1721327630870,0.157028,63683.0,63679.0,0.180037]
[1721327631561,0.0612,63687.0,63683.0,0.157026]
[1721327631782,0.15702,63686.0,63682.0,0.157028]
[1721327633321,0.15702,63686.0,63683.0,0.001]
[1721327633541,0.218218,63687.0,63683.0,0.001]
[1721327633813,0.218218,63687.0,63682.0,0.157028]
[1721327634473,0.04425519,63686.0,63682.0,0.157028]
[1721327634687,0.04425519,63686.0,63683.0,0.001]
[1721327634902,0.20127519,63686.0,63683.0,0.001]